[Event "*** Titled Tuesday Blitz"]
[Site "Chess.com"]
[Date "2020.05.19"]
[Round "7"]
[White "PredragNikac"]
[Black "Rozum_Ivan"]
[Result "1/2-1/2"]
[WhiteElo "2315"]
[BlackElo "2600"]
[TimeControl "180+1"]
[EndTime "13:21:28 PDT"]
[Termination "Game drawn by repetition"]

1. d4 {[%clk 0:03:00.9]} 1... d6 {[%clk 0:02:59.8]} 2. Nc3 {[%clk 0:03:00.4]}
2... f5 {[%clk 0:02:59.9]} 3. h4 {[%clk 0:02:56.2]} 3... Nf6 {[%clk 0:02:59.7]}
4. h5 {[%clk 0:02:56]} 4... e5 {[%clk 0:02:59.8]} 5. dxe5 {[%clk 0:02:55.4]}
5... dxe5 {[%clk 0:03:00.7]} 6. Qxd8+ {[%clk 0:02:55.5]} 6... Kxd8 {[%clk
0:03:01.6]} 7. Bg5 {[%clk 0:02:55.2]} 7... Be7 {[%clk 0:02:56.2]} 8. O-O-O+
{[%clk 0:02:51.3]} 8... Nbd7 {[%clk 0:02:55.2]} 9. e4 {[%clk 0:02:45.4]} 9...
Nxe4 {[%clk 0:02:43.6]} 10. Nxe4 {[%clk 0:02:43.8]} 10... fxe4 {[%clk
0:02:43.5]} 11. Bxe7+ {[%clk 0:02:41.1]} 11... Kxe7 {[%clk 0:02:44.4]} 12. g4
{[%clk 0:02:33.7]} 12... Nf6 {[%clk 0:02:39.1]} 13. g5 {[%clk 0:02:33.1]} 13...
Ng4 {[%clk 0:02:39.3]} 14. Nh3 {[%clk 0:02:30.5]} 14... Rf8 {[%clk 0:02:38.1]}
15. Rd2 {[%clk 0:01:53.8]} 15... e3 {[%clk 0:02:32.5]} 16. fxe3 {[%clk
0:01:50.7]} 16... Nxe3 {[%clk 0:02:33.4]} 17. Bd3 {[%clk 0:01:50.4]} 17... e4
{[%clk 0:02:20.5]} 18. Re2 {[%clk 0:01:40.3]} 18... Rf3 {[%clk 0:02:06.1]} 19.
Bxe4 {[%clk 0:01:37.1]} 19... Rg3 {[%clk 0:01:58.3]} 20. Nf4 {[%clk 0:01:29.4]}
20... Kd6 {[%clk 0:01:45.9]} 21. Rhe1 {[%clk 0:01:22.3]} 21... Ke5 {[%clk
0:01:39.9]} 22. Ng2 {[%clk 0:00:55.3]} 22... Kxe4 {[%clk 0:01:28.5]} 23. Rxe3+
{[%clk 0:00:55.2]} 23... Rxe3 {[%clk 0:01:26.8]} 24. Rxe3+ {[%clk 0:00:56.1]}
24... Kf5 {[%clk 0:01:26.9]} 25. Re7 {[%clk 0:00:55.9]} 25... Kxg5 {[%clk
0:01:05.7]} 26. Rxg7+ {[%clk 0:00:55.4]} 26... Kh6 {[%clk 0:01:06.2]} 27. Rxc7
{[%clk 0:00:54.1]} 27... b6 {[%clk 0:01:04.2]} 28. Nf4 {[%clk 0:00:52.8]} 28...
Bg4 {[%clk 0:01:02.2]} 29. b3 {[%clk 0:00:52.6]} 29... Kg5 {[%clk 0:00:53.7]}
30. Nd5 {[%clk 0:00:47.7]} 30... h6 {[%clk 0:00:53.7]} 31. Rg7+ {[%clk
0:00:44.4]} 31... Kh4 {[%clk 0:00:54]} 32. Ne3 {[%clk 0:00:41.4]} 32... Bh3
{[%clk 0:00:52]} 33. c4 {[%clk 0:00:39.7]} 33... Kxh5 {[%clk 0:00:51.4]} 34. b4
{[%clk 0:00:38.9]} 34... Kh4 {[%clk 0:00:46.8]} 35. Kd2 {[%clk 0:00:37.9]} 35...
h5 {[%clk 0:00:47.2]} 36. Kc3 {[%clk 0:00:36]} 36... Bg4 {[%clk 0:00:45.7]} 37.
c5 {[%clk 0:00:34.5]} 37... bxc5 {[%clk 0:00:45.6]} 38. bxc5 {[%clk 0:00:35.4]}
38... Kg3 {[%clk 0:00:45.1]} 39. c6 {[%clk 0:00:34.3]} 39... Rc8 {[%clk
0:00:43.8]} 40. c7 {[%clk 0:00:34.1]} 40... Kf4 {[%clk 0:00:36.9]} 41. Nc4
{[%clk 0:00:31.3]} 41... h4 {[%clk 0:00:23.7]} 42. Nd6 {[%clk 0:00:30.9]} 42...
Rh8 {[%clk 0:00:15.6]} 43. Rf7+ {[%clk 0:00:28.6]} 43... Ke5 {[%clk 0:00:15.9]}
44. Nc4+ {[%clk 0:00:24.9]} 44... Ke4 {[%clk 0:00:09.8]} 45. Nd6+ {[%clk
0:00:21.1]} 45... Kd5 {[%clk 0:00:09.9]} 46. Nf5 {[%clk 0:00:16.1]} 46... Bxf5
{[%clk 0:00:02.5]} 47. Rxf5+ {[%clk 0:00:17]} 47... Kc6 {[%clk 0:00:02.1]} 48.
Rh5 {[%clk 0:00:17.9]} 48... Rc8 {[%clk 0:00:01.8]} 49. Rxh4 {[%clk 0:00:17.2]}
49... Rxc7 {[%clk 0:00:01.6]} 50. Rc4+ {[%clk 0:00:16.9]} 50... Kb7 {[%clk
0:00:02.5]} 51. Rxc7+ {[%clk 0:00:16.9]} 51... Kxc7 {[%clk 0:00:03.4]} 52. Kb4
{[%clk 0:00:17.7]} 52... Kb6 {[%clk 0:00:04.3]} 53. a4 {[%clk 0:00:17.5]} 53...
Ka6 {[%clk 0:00:05.2]} 54. a5 {[%clk 0:00:16.9]} 54... Kb7 {[%clk 0:00:05.5]}
55. Kb5 {[%clk 0:00:17]} 55... a6+ {[%clk 0:00:05.9]} 56. Kc5 {[%clk 0:00:16.9]}
56... Kc7 {[%clk 0:00:06.5]} 57. Kd5 {[%clk 0:00:16.6]} 57... Kd7 {[%clk
0:00:07.1]} 58. Kc5 {[%clk 0:00:17.5]} 58... Kc7 {[%clk 0:00:07.5]} 59. Kd5
{[%clk 0:00:17.9]} 59... Kd7 {[%clk 0:00:08.2]} 60. Kc5 {[%clk 0:00:18.8]} 60...
Kc7 {[%clk 0:00:08.8]} 1/2-1/2

[Event "*** Titled Tuesday Blitz"]
[Site "Chess.com"]
[Date "2020.05.19"]
[Round "7"]
[White "nabukatnezarr"]
[Black "Arjun2002"]
[Result "1/2-1/2"]
[WhiteElo "2526"]
[BlackElo "2672"]
[TimeControl "180+1"]
[EndTime "13:21:29 PDT"]
[Termination "Game drawn by repetition"]

1. d4 {[%clk 0:02:58.9]} 1... d5 {[%clk 0:02:59.9]} 2. c4 {[%clk 0:02:58.6]}
2... c6 {[%clk 0:03:00.1]} 3. cxd5 {[%clk 0:02:57.3]} 3... cxd5 {[%clk 0:03:01]}
4. Bf4 {[%clk 0:02:57.4]} 4... Nf6 {[%clk 0:02:59.6]} 5. e3 {[%clk 0:02:56.9]}
5... Nc6 {[%clk 0:02:58.6]} 6. Nc3 {[%clk 0:02:55.1]} 6... Bg4 {[%clk
0:02:58.4]} 7. f3 {[%clk 0:02:51]} 7... Bd7 {[%clk 0:02:57.3]} 8. Bd3 {[%clk
0:02:46.5]} 8... e6 {[%clk 0:02:56.7]} 9. Nge2 {[%clk 0:02:45.5]} 9... Be7
{[%clk 0:02:48.2]} 10. Bg3 {[%clk 0:02:43]} 10... O-O {[%clk 0:02:47.7]} 11. O-O
{[%clk 0:02:42.5]} 11... Rc8 {[%clk 0:02:47]} 12. Rc1 {[%clk 0:02:42.9]} 12...
a6 {[%clk 0:02:40.7]} 13. Na4 {[%clk 0:02:42.1]} 13... Na5 {[%clk 0:02:18.3]}
14. Rxc8 {[%clk 0:02:43]} 14... Bxc8 {[%clk 0:02:15.7]} 15. b3 {[%clk
0:02:29.3]} 15... b5 {[%clk 0:01:47.7]} 16. Nc5 {[%clk 0:02:18.9]} 16... Qb6
{[%clk 0:01:42.6]} 17. Qd2 {[%clk 0:02:07.1]} 17... Nb7 {[%clk 0:01:40.2]} 18.
Nxb7 {[%clk 0:02:00.5]} 18... Bxb7 {[%clk 0:01:38.8]} 19. Rc1 {[%clk 0:02:01.4]}
19... Rc8 {[%clk 0:01:38.5]} 20. Rxc8+ {[%clk 0:01:59.9]} 20... Bxc8 {[%clk
0:01:39.4]} 21. Qc2 {[%clk 0:01:55.8]} 21... Bd7 {[%clk 0:01:39.4]} 22. Be5
{[%clk 0:01:47.4]} 22... Bc6 {[%clk 0:01:36.4]} 23. Bxf6 {[%clk 0:01:45]} 23...
Bxf6 {[%clk 0:01:36.4]} 24. Bxh7+ {[%clk 0:01:45.2]} 24... Kf8 {[%clk
0:01:36.8]} 25. Bd3 {[%clk 0:01:46.1]} 25... Ke8 {[%clk 0:01:34.7]} 26. f4
{[%clk 0:01:38.3]} 26... Kd7 {[%clk 0:01:34.3]} 27. Nc1 {[%clk 0:01:33.8]} 27...
Qa5 {[%clk 0:01:34.3]} 28. Kf2 {[%clk 0:01:29.3]} 28... Be7 {[%clk 0:01:30.2]}
29. Be2 {[%clk 0:01:28.1]} 29... g5 {[%clk 0:01:24.4]} 30. Nd3 {[%clk
0:01:23.9]} 30... Bd6 {[%clk 0:00:46.3]} 31. fxg5 {[%clk 0:01:24]} 31... Qd8
{[%clk 0:00:44.1]} 32. h4 {[%clk 0:01:23.8]} 32... Qh8 {[%clk 0:00:43.9]} 33. g3
{[%clk 0:01:08.1]} 33... f6 {[%clk 0:00:31]} 34. g6 {[%clk 0:01:02.2]} 34... Qh6
{[%clk 0:00:30.7]} 35. Bg4 {[%clk 0:00:18.7]} 35... f5 {[%clk 0:00:25.5]} 36.
Bf3 {[%clk 0:00:16]} 36... Qxg6 {[%clk 0:00:25.6]} 37. Nf4 {[%clk 0:00:16.7]}
37... Qh6 {[%clk 0:00:24.9]} 38. Nd3 {[%clk 0:00:09.6]} 38... Qg7 {[%clk
0:00:24]} 39. Nf4 {[%clk 0:00:08.2]} 39... Qh8 {[%clk 0:00:23.7]} 40. Nd3 {[%clk
0:00:07.9]} 40... Qg7 {[%clk 0:00:22.6]} 41. Nf4 {[%clk 0:00:08.1]} 41... Qh8
{[%clk 0:00:22.4]} 42. h5 {[%clk 0:00:08.5]} 42... Bb7 {[%clk 0:00:20.5]} 43.
Nd3 {[%clk 0:00:08]} 43... Qg7 {[%clk 0:00:20.3]} 44. Nc5+ {[%clk 0:00:08.2]}
44... Ke7 {[%clk 0:00:15.9]} 45. Nxb7 {[%clk 0:00:06.7]} 45... Qxg3+ {[%clk
0:00:16]} 46. Ke2 {[%clk 0:00:07.3]} 46... Bb4 {[%clk 0:00:15.4]} 47. Qc8 {[%clk
0:00:04.6]} 47... Qe1+ {[%clk 0:00:14.8]} 48. Kd3 {[%clk 0:00:04.3]} 48... Qf1+
{[%clk 0:00:13.7]} 49. Be2 {[%clk 0:00:03.1]} 49... Qb1+ {[%clk 0:00:13.8]} 50.
Qc2 {[%clk 0:00:01.7]} 50... Qh1 {[%clk 0:00:13]} 51. Qc7+ {[%clk 0:00:02.6]}
51... Kf6 {[%clk 0:00:12.3]} 52. Qd8+ {[%clk 0:00:03]} 52... Kg7 {[%clk
0:00:11.7]} 53. Qd7+ {[%clk 0:00:02.9]} 53... Kh8 {[%clk 0:00:10.9]} 54. Qe8+
{[%clk 0:00:03.1]} 54... Kh7 {[%clk 0:00:11.1]} 55. Qg6+ {[%clk 0:00:03.9]}
55... Kh8 {[%clk 0:00:11.5]} 56. Qf6+ {[%clk 0:00:04.6]} 56... Kh7 {[%clk
0:00:11.7]} 57. Qf7+ {[%clk 0:00:05]} 57... Kh8 {[%clk 0:00:12]} 58. Qe8+ {[%clk
0:00:05.3]} 58... Kh7 {[%clk 0:00:12.1]} 59. Qg6+ {[%clk 0:00:05.4]} 59... Kh8
{[%clk 0:00:12.2]} 60. Qe8+ {[%clk 0:00:04.9]} 1/2-1/2

[Event "*** Titled Tuesday Blitz"]
[Site "Chess.com"]
[Date "2020.05.19"]
[Round "7"]
[White "noblerone"]
[Black "124chess"]
[Result "0-1"]
[WhiteElo "2446"]
[BlackElo "2741"]
[TimeControl "180+1"]
[EndTime "13:21:31 PDT"]
[Termination "124chess won on time"]

1. d4 {[%clk 0:03:00.9]} 1... d5 {[%clk 0:03:00.2]} 2. Nf3 {[%clk 0:02:59.3]}
2... c6 {[%clk 0:03:00.3]} 3. c3 {[%clk 0:02:51.8]} 3... Bf5 {[%clk 0:02:59.5]}
4. Qb3 {[%clk 0:02:50.3]} 4... Qc8 {[%clk 0:02:58.4]} 5. Bf4 {[%clk 0:02:50.6]}
5... Nd7 {[%clk 0:02:58.5]} 6. Nbd2 {[%clk 0:02:50.9]} 6... e6 {[%clk
0:02:58.9]} 7. e3 {[%clk 0:02:51.2]} 7... Ngf6 {[%clk 0:02:59.5]} 8. h3 {[%clk
0:02:51.3]} 8... Be7 {[%clk 0:03:00.1]} 9. Be2 {[%clk 0:02:49.8]} 9... O-O
{[%clk 0:03:00.6]} 10. O-O {[%clk 0:02:50]} 10... Ne4 {[%clk 0:03:00.6]} 11.
Rac1 {[%clk 0:02:44.9]} 11... b5 {[%clk 0:02:58]} 12. Nxe4 {[%clk 0:02:41.8]}
12... Bxe4 {[%clk 0:02:58]} 13. Ne5 {[%clk 0:02:42]} 13... Nxe5 {[%clk
0:02:57.6]} 14. Bxe5 {[%clk 0:02:42.9]} 14... Qd7 {[%clk 0:02:54.3]} 15. Qd1
{[%clk 0:02:39.1]} 15... a5 {[%clk 0:02:53.3]} 16. b3 {[%clk 0:02:37.5]} 16...
Rfc8 {[%clk 0:02:50.3]} 17. Qd2 {[%clk 0:02:35.7]} 17... Ba3 {[%clk 0:02:48.8]}
18. Ra1 {[%clk 0:02:30.6]} 18... c5 {[%clk 0:02:48.8]} 19. Bg3 {[%clk
0:01:59.2]} 19... c4 {[%clk 0:02:42.7]} 20. Bd1 {[%clk 0:01:38]} 20... b4 {[%clk
0:02:36.7]} 21. bxc4 {[%clk 0:01:33.6]} 21... dxc4 {[%clk 0:02:36.6]} 22. Bc2
{[%clk 0:01:23.9]} 22... Qd5 {[%clk 0:02:31.1]} 23. Bxe4 {[%clk 0:01:18.1]}
23... Qxe4 {[%clk 0:02:32]} 24. Rab1 {[%clk 0:01:17.4]} 24... h5 {[%clk
0:02:21]} 25. f3 {[%clk 0:01:14.3]} 25... Qg6 {[%clk 0:02:01.7]} 26. Bf4 {[%clk
0:01:11]} 26... a4 {[%clk 0:01:59.4]} 27. e4 {[%clk 0:01:02.2]} 27... b3 {[%clk
0:01:59]} 28. d5 {[%clk 0:00:54.3]} 28... exd5 {[%clk 0:01:58]} 29. exd5 {[%clk
0:00:55.2]} 29... Bc5+ {[%clk 0:01:57.3]} 30. Kh1 {[%clk 0:00:55.1]} 30... Qb6
{[%clk 0:01:54]} 31. Rfd1 {[%clk 0:00:50]} 31... a3 {[%clk 0:01:51.9]} 32. d6
{[%clk 0:00:47.5]} 32... b2 {[%clk 0:01:50]} 33. d7 {[%clk 0:00:46.6]} 33... Rf8
{[%clk 0:01:41.4]} 34. Bg5 {[%clk 0:00:44.7]} 34... f6 {[%clk 0:01:07.2]} 35.
Qd5+ {[%clk 0:00:42.6]} 35... Kh8 {[%clk 0:01:07.1]} 36. Bf4 {[%clk 0:00:42.5]}
36... Rad8 {[%clk 0:01:02.8]} 37. Qxh5+ {[%clk 0:00:40.9]} 37... Kg8 {[%clk
0:01:03]} 38. Qd5+ {[%clk 0:00:41.5]} 38... Rf7 {[%clk 0:01:00.8]} 39. Qxc4
{[%clk 0:00:34.4]} 39... Be3 {[%clk 0:00:57.3]} 40. Bxe3 {[%clk 0:00:32.9]}
40... Qxe3 {[%clk 0:00:57.2]} 41. Re1 {[%clk 0:00:32.1]} 41... Qxe1+ {[%clk
0:00:21.9]} 42. Rxe1 {[%clk 0:00:29.8]} 42... Rxd7 {[%clk 0:00:22.5]} 43. Qb3
{[%clk 0:00:15.3]} 43... Rb7 {[%clk 0:00:20.7]} 44. Qxa3 {[%clk 0:00:09.8]}
44... b1=Q {[%clk 0:00:20.5]} 45. Rxb1 {[%clk 0:00:10.4]} 45... Rxb1+ {[%clk
0:00:21.4]} 46. Kh2 {[%clk 0:00:11.3]} 46... Rfb7 {[%clk 0:00:19]} 47. Qa8+
{[%clk 0:00:10.6]} 47... Kh7 {[%clk 0:00:18.8]} 48. a4 {[%clk 0:00:11]} 48...
R7b2 {[%clk 0:00:18.2]} 49. Qe4+ {[%clk 0:00:10.7]} 49... Kg8 {[%clk 0:00:18.1]}
50. a5 {[%clk 0:00:10.7]} 50... Ra1 {[%clk 0:00:17.1]} 51. Qd5+ {[%clk
0:00:10.4]} 51... Kh7 {[%clk 0:00:16.1]} 52. Qd4 {[%clk 0:00:08.3]} 52... Raa2
{[%clk 0:00:14.3]} 53. Qh4+ {[%clk 0:00:07.2]} 53... Kg8 {[%clk 0:00:14.4]} 54.
Qg4 {[%clk 0:00:07.7]} 54... Rxa5 {[%clk 0:00:12.7]} 55. c4 {[%clk 0:00:06.1]}
55... Rb8 {[%clk 0:00:10.9]} 56. Qe6+ {[%clk 0:00:04.7]} 56... Kh8 {[%clk
0:00:10]} 57. Qe2 {[%clk 0:00:03.3]} 57... Rc5 {[%clk 0:00:09.9]} 0-1

[Event "*** Titled Tuesday Blitz"]
[Site "Chess.com"]
[Date "2020.05.19"]
[Round "7"]
[White "florianschwabeneder"]
[Black "GukeshDommaraju"]
[Result "1/2-1/2"]
[WhiteElo "2514"]
[BlackElo "2671"]
[TimeControl "180+1"]
[EndTime "13:21:33 PDT"]
[Termination "Game drawn - insufficient material"]

1. e4 {[%clk 0:03:00.9]} 1... c5 {[%clk 0:02:59.9]} 2. Nf3 {[%clk 0:03:00.8]}
2... Nc6 {[%clk 0:03:00.1]} 3. Bb5 {[%clk 0:02:59]} 3... g6 {[%clk 0:02:59.9]}
4. O-O {[%clk 0:02:58.5]} 4... Bg7 {[%clk 0:02:59.9]} 5. c3 {[%clk 0:02:58.2]}
5... Nf6 {[%clk 0:02:59]} 6. Re1 {[%clk 0:02:58.2]} 6... O-O {[%clk 0:02:59]} 7.
h3 {[%clk 0:02:58.3]} 7... a6 {[%clk 0:02:57.1]} 8. Bf1 {[%clk 0:02:52.4]} 8...
e5 {[%clk 0:02:52.8]} 9. a4 {[%clk 0:02:28.9]} 9... d5 {[%clk 0:02:51]} 10. d3
{[%clk 0:02:27.5]} 10... dxe4 {[%clk 0:02:49.6]} 11. dxe4 {[%clk 0:02:25]} 11...
Qxd1 {[%clk 0:02:49.9]} 12. Rxd1 {[%clk 0:02:25.5]} 12... Nxe4 {[%clk
0:02:50.8]} 13. Na3 {[%clk 0:02:23.4]} 13... Be6 {[%clk 0:02:49.6]} 14. Nc4
{[%clk 0:02:22.8]} 14... Rad8 {[%clk 0:02:48.8]} 15. Re1 {[%clk 0:02:22.6]}
15... f5 {[%clk 0:02:39.6]} 16. a5 {[%clk 0:02:18.6]} 16... Kh8 {[%clk
0:02:34.8]} 17. Ng5 {[%clk 0:02:00.3]} 17... Nxg5 {[%clk 0:02:34.2]} 18. Bxg5
{[%clk 0:02:01.2]} 18... Rd7 {[%clk 0:02:33.4]} 19. Be3 {[%clk 0:02:01]} 19...
Rfd8 {[%clk 0:02:26.9]} 20. Bxc5 {[%clk 0:01:59.1]} 20... f4 {[%clk 0:02:19.9]}
21. Bb6 {[%clk 0:01:55.6]} 21... Re8 {[%clk 0:02:15.8]} 22. Rad1 {[%clk
0:01:49.1]} 22... Ree7 {[%clk 0:02:09.6]} 23. Nd6 {[%clk 0:01:45.8]} 23... Bb3
{[%clk 0:01:59]} 24. Rd2 {[%clk 0:01:34.5]} 24... Bf8 {[%clk 0:01:35.5]} 25. Ne4
{[%clk 0:01:30.1]} 25... Rxd2 {[%clk 0:01:34.3]} 26. Nxd2 {[%clk 0:01:30.3]}
26... Bd5 {[%clk 0:01:34.4]} 27. Bc4 {[%clk 0:01:21.6]} 27... Bxc4 {[%clk
0:01:34]} 28. Nxc4 {[%clk 0:01:22.5]} 28... Re6 {[%clk 0:01:33.9]} 29. Nd2
{[%clk 0:01:19.1]} 29... Kg7 {[%clk 0:01:32.6]} 30. Ne4 {[%clk 0:01:19.2]} 30...
Re7 {[%clk 0:01:21]} 31. Rd1 {[%clk 0:01:17.6]} 31... Kf7 {[%clk 0:01:20.6]} 32.
f3 {[%clk 0:01:06.6]} 32... h6 {[%clk 0:01:10.5]} 33. Kf2 {[%clk 0:01:05.2]}
33... Bg7 {[%clk 0:01:02.8]} 34. Ke2 {[%clk 0:01:04.1]} 34... Ke8 {[%clk
0:00:59.3]} 35. Bc5 {[%clk 0:00:52.3]} 35... Rd7 {[%clk 0:00:45.1]} 36. Nd6+
{[%clk 0:00:40.4]} 36... Kd8 {[%clk 0:00:43.7]} 37. Nxb7+ {[%clk 0:00:36.4]}
37... Kc8 {[%clk 0:00:43]} 38. Rxd7 {[%clk 0:00:37.3]} 38... Kxd7 {[%clk
0:00:43]} 39. b4 {[%clk 0:00:33]} 39... e4 {[%clk 0:00:38]} 40. fxe4 {[%clk
0:00:26.6]} 40... Bxc3 {[%clk 0:00:37.9]} 41. Bf8 {[%clk 0:00:26.4]} 41... Bxb4
{[%clk 0:00:33.7]} 42. Bxb4 {[%clk 0:00:13.3]} 42... Nxb4 {[%clk 0:00:34.6]} 43.
Nc5+ {[%clk 0:00:12.7]} 43... Kd6 {[%clk 0:00:34.3]} 44. Nb3 {[%clk 0:00:07.4]}
44... Ke5 {[%clk 0:00:30.9]} 45. Kf3 {[%clk 0:00:07.7]} 45... g5 {[%clk
0:00:27.3]} 46. Nc5 {[%clk 0:00:03.8]} 46... Kd6 {[%clk 0:00:20.3]} 47. Nb3
{[%clk 0:00:02.5]} 47... Nc6 {[%clk 0:00:20.5]} 48. g3 {[%clk 0:00:01.5]} 48...
fxg3 {[%clk 0:00:20.2]} 49. Kxg3 {[%clk 0:00:02.4]} 49... Ke5 {[%clk 0:00:20.4]}
50. Kf3 {[%clk 0:00:02.6]} 50... Nd4+ {[%clk 0:00:20.6]} 51. Nxd4 {[%clk
0:00:03]} 51... Kxd4 {[%clk 0:00:20.8]} 52. Kg4 {[%clk 0:00:02.7]} 52... Kxe4
{[%clk 0:00:20.8]} 53. Kh5 {[%clk 0:00:03.1]} 53... Kf4 {[%clk 0:00:18.6]} 54.
Kxh6 {[%clk 0:00:03.5]} 54... g4 {[%clk 0:00:18.9]} 55. hxg4 {[%clk 0:00:03.3]}
55... Kxg4 {[%clk 0:00:19.3]} 56. Kg6 {[%clk 0:00:03.5]} 56... Kf4 {[%clk
0:00:19.8]} 57. Kf6 {[%clk 0:00:03.1]} 57... Ke4 {[%clk 0:00:20.1]} 58. Kg5
{[%clk 0:00:03.4]} 58... Kd4 {[%clk 0:00:20]} 59. Kf4 {[%clk 0:00:04.3]} 59...
Kc5 {[%clk 0:00:19.9]} 60. Ke3 {[%clk 0:00:05.2]} 60... Kb5 {[%clk 0:00:20.2]}
61. Kd2 {[%clk 0:00:06.1]} 61... Kxa5 {[%clk 0:00:19.7]} 62. Kc1 {[%clk
0:00:07]} 62... Kb4 {[%clk 0:00:20.1]} 63. Kb1 {[%clk 0:00:07.9]} 63... a5
{[%clk 0:00:21]} 64. Ka1 {[%clk 0:00:08.8]} 64... a4 {[%clk 0:00:21.9]} 65. Kb1
{[%clk 0:00:09.7]} 65... a3 {[%clk 0:00:22.8]} 66. Ka1 {[%clk 0:00:10.6]} 66...
a2 {[%clk 0:00:23.7]} 67. Kxa2 {[%clk 0:00:10.5]} 1/2-1/2

[Event "*** Titled Tuesday Blitz"]
[Site "Chess.com"]
[Date "2020.05.19"]
[Round "7"]
[White "cukus"]
[Black "GoldenShare"]
[Result "0-1"]
[WhiteElo "2488"]
[BlackElo "2625"]
[TimeControl "180+1"]
[EndTime "13:21:33 PDT"]
[Termination "GoldenShare won by resignation"]

1. e4 {[%clk 0:03:00.9]} 1... e6 {[%clk 0:03:00.1]} 2. d4 {[%clk 0:02:59.8]}
2... d5 {[%clk 0:03:00.7]} 3. Nc3 {[%clk 0:03:00.2]} 3... Nc6 {[%clk 0:03:01.1]}
4. e5 {[%clk 0:02:58.3]} 4... f6 {[%clk 0:03:01.1]} 5. Bb5 {[%clk 0:02:58.2]}
5... Bd7 {[%clk 0:03:00.9]} 6. Nf3 {[%clk 0:02:53]} 6... Qe7 {[%clk 0:03:00.9]}
7. O-O {[%clk 0:02:52.6]} 7... O-O-O {[%clk 0:02:58.7]} 8. a4 {[%clk 0:02:49.1]}
8... Qf7 {[%clk 0:02:55.7]} 9. a5 {[%clk 0:02:47.1]} 9... a6 {[%clk 0:02:49.7]}
10. Bxc6 {[%clk 0:02:22.8]} 10... Bxc6 {[%clk 0:02:50.6]} 11. Bf4 {[%clk
0:02:18.4]} 11... f5 {[%clk 0:02:45.8]} 12. Na4 {[%clk 0:02:10.1]} 12... h6
{[%clk 0:02:42.7]} 13. Nc5 {[%clk 0:02:07.4]} 13... g5 {[%clk 0:02:38.3]} 14.
Bd2 {[%clk 0:02:07.4]} 14... g4 {[%clk 0:02:26.4]} 15. Ne1 {[%clk 0:02:06.8]}
15... Bxc5 {[%clk 0:02:24.4]} 16. dxc5 {[%clk 0:02:06.7]} 16... h5 {[%clk
0:02:17.3]} 17. Bf4 {[%clk 0:01:59.6]} 17... Ne7 {[%clk 0:02:15.5]} 18. Nd3
{[%clk 0:01:59]} 18... Ng6 {[%clk 0:02:15.6]} 19. c3 {[%clk 0:01:55.8]} 19...
Bb5 {[%clk 0:02:13.5]} 20. Bg5 {[%clk 0:01:55.2]} 20... Rdg8 {[%clk 0:01:16.3]}
21. Bf6 {[%clk 0:01:54.5]} 21... Rh7 {[%clk 0:01:16.7]} 22. b3 {[%clk
0:01:53.1]} 22... h4 {[%clk 0:01:09.5]} 23. Rc1 {[%clk 0:01:51.7]} 23... f4
{[%clk 0:00:57.9]} 24. c4 {[%clk 0:01:49.2]} 24... dxc4 {[%clk 0:00:58.8]} 25.
bxc4 {[%clk 0:01:49]} 25... Bc6 {[%clk 0:00:59.5]} 26. Nb4 {[%clk 0:01:49]}
26... Qe8 {[%clk 0:00:56.1]} 27. Qd2 {[%clk 0:01:32.3]} 27... f3 {[%clk
0:00:47]} 28. g3 {[%clk 0:01:32]} 28... hxg3 {[%clk 0:00:44.5]} 29. fxg3 {[%clk
0:01:32.2]} 29... Rd7 {[%clk 0:00:31.8]} 30. Qe3 {[%clk 0:01:25.5]} 30... Ne7
{[%clk 0:00:28.2]} 31. Rfd1 {[%clk 0:01:15.5]} 31... Nf5 {[%clk 0:00:28.4]} 32.
Qf2 {[%clk 0:01:06.3]} 32... Ba4 {[%clk 0:00:28.8]} 33. Rd2 {[%clk 0:01:03]}
33... Rxd2 {[%clk 0:00:23.9]} 34. Qxd2 {[%clk 0:01:02.6]} 34... Qd7 {[%clk
0:00:18.1]} 35. Qxd7+ {[%clk 0:00:46.7]} 35... Bxd7 {[%clk 0:00:19]} 36. c6
{[%clk 0:00:46.3]} 36... Bxc6 {[%clk 0:00:19.2]} 37. Nxc6 {[%clk 0:00:46]} 37...
bxc6 {[%clk 0:00:20.1]} 38. c5 {[%clk 0:00:44.7]} 38... Nd4 {[%clk 0:00:20.5]}
39. Kf2 {[%clk 0:00:43.5]} 39... Nb3 {[%clk 0:00:19.2]} 40. Rc4 {[%clk
0:00:39.7]} 40... Nxa5 {[%clk 0:00:18.2]} 41. Ra4 {[%clk 0:00:38.8]} 41... Nb3
{[%clk 0:00:18]} 42. Rxa6 {[%clk 0:00:36.9]} 42... Kb7 {[%clk 0:00:18.3]} 43.
Ra3 {[%clk 0:00:32.9]} 43... Nxc5 {[%clk 0:00:18.7]} 44. Ke3 {[%clk 0:00:26.5]}
44... Kb6 {[%clk 0:00:17.5]} 45. h4 {[%clk 0:00:22.2]} 45... gxh3 {[%clk
0:00:16.6]} 46. Kxf3 {[%clk 0:00:22.5]} 46... Nd7 {[%clk 0:00:14.8]} 47. g4
{[%clk 0:00:18.7]} 47... Rf8 {[%clk 0:00:12.9]} 48. Kg3 {[%clk 0:00:17]} 48...
Nxf6 {[%clk 0:00:12.8]} 49. exf6 {[%clk 0:00:17.5]} 49... Rxf6 {[%clk
0:00:13.7]} 50. Kxh3 {[%clk 0:00:18.1]} 50... c5 {[%clk 0:00:14.2]} 51. g5
{[%clk 0:00:17.6]} 51... Rf8 {[%clk 0:00:14.2]} 52. Re3 {[%clk 0:00:16.5]} 52...
Re8 {[%clk 0:00:13]} 53. Kg4 {[%clk 0:00:16.8]} 53... c4 {[%clk 0:00:13.5]} 54.
g6 {[%clk 0:00:17.2]} 54... Kc5 {[%clk 0:00:14]} 55. Kg5 {[%clk 0:00:17.8]}
55... Kd4 {[%clk 0:00:14.3]} 56. Re1 {[%clk 0:00:18.1]} 56... c3 {[%clk
0:00:14.7]} 57. Kf6 {[%clk 0:00:18.5]} 57... Kd3 {[%clk 0:00:14.2]} 58. g7
{[%clk 0:00:17.8]} 58... c2 {[%clk 0:00:13.8]} 59. Kf7 {[%clk 0:00:11.8]} 59...
Rc8 {[%clk 0:00:13.4]} 60. g8=Q {[%clk 0:00:07.5]} 60... Rxg8 {[%clk 0:00:12.6]}
61. Kxg8 {[%clk 0:00:08.4]} 61... Kd2 {[%clk 0:00:13]} 62. Rh1 {[%clk
0:00:04.1]} 62... c1=Q {[%clk 0:00:13.4]} 63. Rxc1 {[%clk 0:00:03.9]} 63... Kxc1
{[%clk 0:00:14.3]} 0-1